fUST/lending_fUST_20250117
["ID","MTS","AMOUNT","RATE_DAILY","PERIOD"]
[349231603,1737051044662,-500.0,0.00019315,3]
[349231604,1737051044672,-500.0,0.00019315,3]
[349231605,1737051044682,-500.0,0.00019315,3]
[349231606,1737051044691,-219.1,0.00019315,3]
[349231607,1737051044701,-500.0,0.00019315,3]
[349231608,1737051044710,-500.0,0.00019407,2]
[349231609,1737051044720,-182.184,0.00019416,2]
[349231610,1737051044729,-500.0,0.00019451,3]
[349231611,1737051044738,-500.0,0.00019451,3]
[349231612,1737051044748,-500.0,0.00019452,3]
[349231613,1737051044758,-526.20262269,0.00019452,3]
[349231614,1737051044767,-500.0,0.00019452,3]
[349231615,1737051044777,-500.0,0.00019452,3]
[349231616,1737051044787,-504.21761115,0.00019452,3]
[349231617,1737051044797,-500.0,0.00019452,3]
[349231618,1737051044807,-500.0,0.00019452,3]
[349231619,1737051044816,-500.0,0.00019452,3]
[349231620,1737051044825,-500.0,0.00019452,3]
[349231621,1737051044834,-500.0,0.00019452,3]
[349231622,1737051044843,-500.0,0.00019452,3]
[349231623,1737051044853,-500.0,0.00019452,3]
[349231624,1737051044863,-500.0,0.00019452,3]
[349231625,1737051044872,-500.0,0.00019452,3]
[349231626,1737051044882,-500.0,0.00019452,3]
[349231627,1737051044892,-500.0,0.00019452,3]
[349231628,1737051044901,-500.0,0.00019452,3]
[349231629,1737051044912,-231.02,0.00019452,3]
[349231630,1737051044921,-500.0,0.00019452,3]
[349231631,1737051044931,-500.0,0.00019452,3]
[349231632,1737051044941,-505.85468041,0.00019452,3]
[349231633,1737051044950,-500.0,0.00019452,3]
[349231634,1737051044960,-500.0,0.00019452,3]
[349231635,1737051044969,-500.0,0.00019452,3]
[349231636,1737051044979,-500.0,0.00019452,3]
[349231637,1737051044988,-500.0,0.00019452,3]
[349231638,1737051044998,-1049.32,0.00019452,3]
[349231639,1737051045007,-500.0,0.00019452,3]
[349231640,1737051045017,-575.92,0.00019452,3]
[349231641,1737051045027,-500.0,0.00019452,3]
[349231642,1737051045037,-500.0,0.00019452,3]
[349231643,1737051045047,-500.0,0.00019452,3]
[349231644,1737051045057,-500.0,0.00019452,3]
[349231645,1737051045067,-500.0,0.00019452,3]
[349231646,1737051045078,-3999.41,0.00019452,3]
[349231647,1737051045090,-500.0,0.00019452,3]
[349231648,1737051045101,-500.0,0.00019452,3]
[349231649,1737051045110,-1037.46,0.00019452,3]
[349231650,1737051045120,-500.0,0.00019452,3]
[349231651,1737051045130,-500.0,0.00019452,3]
[349231652,1737051045139,-500.0,0.00019452,3]
[349231653,1737051045148,-500.0,0.00019452,3]
[349231654,1737051045158,-500.0,0.00019452,3]
[349231655,1737051045168,-500.0,0.00019588,3]
[349231656,1737051045178,-500.0,0.00019589,3]
[349231657,1737051045188,-500.0,0.00019589,3]
[349231658,1737051045198,-500.0,0.00019589,3]
[349231659,1737051045208,-365.82308792,0.00019589,3]
[349231660,1737051045221,-270.86,0.00019589,3]
[349231661,1737051045233,-500.0,0.00019589,3]
[349231662,1737051045243,-500.0,0.00019589,3]
[349231663,1737051045252,-500.0,0.00019589,3]
[349231664,1737051045262,-500.0,0.00019589,3]
[349231665,1737051045272,-1049.32,0.00019589,3]
[349231666,1737051045281,-500.0,0.00019589,3]
[349231667,1737051045291,-575.92,0.00019589,3]
[349231668,1737051045301,-500.0,0.00019589,3]
[349231669,1737051045313,-500.0,0.00019589,3]
[349231670,1737051045322,-500.0,0.00019589,3]
[349231671,1737051045332,-500.0,0.00019589,3]
[349231672,1737051045342,-500.0,0.00019589,3]
[349231673,1737051045351,-3999.41,0.00019589,3]
[349231674,1737051045361,-500.0,0.00019589,3]
[349231675,1737051045371,-500.0,0.00019589,3]
[349231676,1737051045380,-1037.46,0.00019589,3]
[349231677,1737051045391,-500.0,0.00019589,3]
[349231678,1737051045401,-500.0,0.00019589,3]
[349231679,1737051045411,-500.0,0.00019589,3]
[349231680,1737051045420,-500.0,0.00019589,3]
[349231681,1737051045429,-500.0,0.00019589,3]
[349231682,1737051045439,-518.22267436,0.00019656,2]
[349231683,1737051045449,-413.5280617,0.00019676,2]
[349231684,1737051045459,-500.0,0.00019726,3]
[349231685,1737051045468,-500.0,0.00019726,3]
[349231686,1737051045478,-500.0,0.00019726,3]
[349231687,1737051045487,-1049.32,0.00019726,3]
[349231688,1737051045497,-500.0,0.00019726,3]
[349231689,1737051045506,-575.92,0.00019726,3]
[349231690,1737051045515,-500.0,0.00019726,3]
[349231691,1737051045526,-500.0,0.00019726,3]
[349231692,1737051045535,-500.0,0.00019726,3]
[349231693,1737051045545,-500.0,0.00019726,3]
[349231694,1737051045554,-396.02622332,0.00019726,3]
[349231695,1737051045563,-3999.41,0.00019726,3]
[349231696,1737051045573,-500.0,0.00019726,3]
[349231697,1737051045583,-500.0,0.00019726,3]
[349231698,1737051045592,-1037.46,0.00019726,3]
[349231699,1737051045603,-500.0,0.00019726,3]
[349231700,1737051045612,-500.0,0.00019726,3]
[349231701,1737051045622,-552.39,0.00019726,3]
[349231702,1737051045632,-500.0,0.00019726,3]
[349231703,1737051045641,-500.0,0.00019726,3]
[349231704,1737051045651,-420.0,0.00019862,2]
[349231705,1737051045661,-370.84,0.00019863,3]
[349231706,1737051045670,-500.0,0.00019863,3]
[349231707,1737051045680,-500.0,0.00019863,3]
[349231708,1737051045690,-1049.32,0.00019863,3]
[349231709,1737051045699,-500.0,0.00019863,3]
[349231710,1737051045709,-575.92,0.00019863,3]
[349231711,1737051045719,-500.0,0.00019863,3]
[349231713,1737051045729,-500.0,0.00019863,3]
[349231715,1737051045739,-500.0,0.00019863,3]
[349231716,1737051045748,-500.0,0.00019863,3]
[349231718,1737051045758,-3999.41,0.00019863,3]
[349231719,1737051045767,-500.0,0.00019863,3]
[349231720,1737051045776,-500.0,0.00019863,3]
[349231721,1737051045786,-1037.46,0.00019863,3]
[349231722,1737051045795,-500.0,0.00019863,3]
[349231723,1737051045805,-314.63,0.00019863,3]
[349231724,1737051045814,-500.0,0.00019863,3]
[349231725,1737051045823,-500.0,0.00019863,3]
[349231726,1737051045833,-253.08381885,0.000199,2]
[349231727,1737051045843,-392.39,0.0002,2]
[349231728,1737051045853,-1000.0,0.0002,20]
[349231729,1737051045863,-3186.0,0.0002,2]
[349231730,1737051045872,-300.0,0.0002,8]
[349231732,1737051045882,-500.0,0.0002,3]
[349231734,1737051045891,-500.0,0.0002,3]
[349231736,1737051045901,-1049.32,0.0002,3]
[349231737,1737051045912,-500.0,0.0002,3]
[349231738,1737051045922,-575.92,0.0002,3]
[349231739,1737051045931,-500.0,0.0002,3]
[349231741,1737051045941,-500.0,0.0002,3]
[349231743,1737051045951,-500.0,0.0002,3]
[349231744,1737051045960,-500.0,0.0002,3]
[349231745,1737051045969,-3999.41,0.0002,3]
[349231746,1737051045979,-500.0,0.0002,3]
[349231747,1737051045988,-500.0,0.0002,3]
[349231748,1737051045997,-1037.46,0.0002,3]
[349231749,1737051046006,-500.0,0.0002,3]
[349231750,1737051046016,-500.0,0.0002,3]
[349231751,1737051046025,-500.0,0.0002,3]
[349231752,1737051046035,-253.08381875,0.00020038,2]
[349231753,1737051046044,-500.0,0.00020136,3]
[349231754,1737051046053,-500.0,0.00020136,3]
[349231755,1737051046063,-1049.32,0.00020136,3]
[349231756,1737051046072,-500.0,0.00020136,3]
[349231757,1737051046082,-575.92,0.00020136,3]
[349231758,1737051046091,-209.06,0.00020136,3]
[349231759,1737051046101,-500.0,0.00020136,3]
[349231760,1737051046111,-500.0,0.00020136,3]
[349231761,1737051046120,-500.0,0.00020136,3]
[349231762,1737051046129,-3999.41,0.00020136,3]
[349231764,1737051046138,-500.0,0.00020136,3]
[349231766,1737051046148,-500.0,0.00020136,3]
[349231768,1737051046158,-1037.46,0.00020136,3]
[349231769,1737051046167,-500.0,0.00020136,3]
[349231770,1737051046176,-500.0,0.00020136,3]
[349231771,1737051046185,-500.0,0.00020136,3]
[349231772,1737051046195,-500.0,0.00020145,3]
[349231773,1737051046204,-500.0,0.00020145,3]
[349231774,1737051046214,-253.08381875,0.00020176,2]
[349231776,1737051046227,-500.0,0.00020273,3]
[349231783,1737051046329,-500.0,0.00020273,3]
[349231784,1737051046339,-1049.32,0.00020273,3]
[349231785,1737051046348,-500.0,0.00020273,3]
[349231786,1737051046357,-575.92,0.00020273,3]
[349231787,1737051046367,-500.0,0.00020273,3]
[349231788,1737051046376,-500.0,0.00020273,3]
[349231789,1737051046386,-422.57,0.00020273,3]
[349231791,1737051046395,-3999.41,0.00020273,3]
[349231793,1737051046405,-500.0,0.00020273,3]
[349231794,1737051046415,-500.0,0.00020273,3]
[349231795,1737051046424,-1037.46,0.00020273,3]
[349231796,1737051046434,-500.0,0.00020273,3]
[349231797,1737051046443,-500.0,0.00020273,3]
[349231798,1737051046452,-500.0,0.00020273,3]
[349231799,1737051046462,-253.08381875,0.00020314,2]
[349231800,1737051046471,-2310.0,0.00020354,2]
[349231801,1737051046481,-395.0,0.00020354,2]
[349231802,1737051046490,-500.0,0.00020377,2]
[349231803,1737051046499,-500.0,0.0002041,3]
[349231804,1737051046509,-500.0,0.0002041,3]
[349231805,1737051046518,-1049.32,0.0002041,3]
[349231806,1737051046528,-500.0,0.0002041,3]
[349231807,1737051046537,-575.92,0.0002041,3]
[349231808,1737051046546,-500.0,0.0002041,3]
[349231809,1737051046556,-500.0,0.0002041,3]
[349231810,1737051046565,-3999.41,0.0002041,3]
[349231811,1737051046574,-500.0,0.0002041,3]
[349231812,1737051046583,-500.0,0.0002041,3]
[349231813,1737051046593,-1037.46,0.0002041,3]
[349231814,1737051046602,-500.0,0.0002041,3]
[349231815,1737051046612,-626.55891437,0.0002041,3]
[349231816,1737051046621,-500.0,0.0002041,3]
[349231817,1737051046630,-253.08381875,0.00020452,2]
[349231818,1737051046639,-413.5280617,0.00020459,2]
[349231819,1737051046650,-500.0,0.00020547,3]
[349231820,1737051046659,-500.0,0.00020547,3]
[349231821,1737051046668,-500.0,0.00020547,3]
[349231822,1737051046678,-500.0,0.00020547,3]
[349231823,1737051046687,-500.0,0.00020547,3]
[349231824,1737051046697,-500.0,0.00020547,3]
[349231825,1737051046707,-500.0,0.00020547,3]
[349231826,1737051046717,-500.0,0.00020547,3]
[349231827,1737051046726,-500.0,0.00020547,3]
[349231828,1737051046737,-500.0,0.00020547,3]
[349231829,1737051046746,-500.0,0.00020547,3]
[349231830,1737051046756,-1049.32,0.00020547,3]
[349231831,1737051046765,-500.0,0.00020547,3]
[349231832,1737051046774,-575.92,0.00020547,3]
[349231833,1737051046783,-500.0,0.00020547,3]
[349231834,1737051046793,-500.0,0.00020547,3]
[349231835,1737051046803,-3999.41,0.00020547,3]
[349231836,1737051046812,-500.0,0.00020547,3]
[349231837,1737051046822,-500.0,0.00020547,3]
[349231838,1737051046831,-1037.46,0.00020547,3]
[349231839,1737051046840,-500.0,0.00020547,3]
[349231840,1737051046849,-500.0,0.00020547,3]
[349231841,1737051046858,-253.08381875,0.0002059,2]
[349231842,1737051046868,-569.86,0.00020684,3]
[349231843,1737051046877,-500.0,0.00020684,3]
[349231844,1737051046887,-1049.32,0.00020684,3]
[349231845,1737051046896,-500.0,0.00020684,3]
[349231846,1737051046906,-575.92,0.00020684,3]
[349231847,1737051046916,-500.0,0.00020684,3]
[349231848,1737051046926,-500.0,0.00020684,3]
[349231849,1737051046935,-3999.41,0.00020684,3]
[349231850,1737051046945,-420.65,0.00020684,3]
[349231851,1737051046955,-500.0,0.00020684,3]
[349231852,1737051046964,-1037.46,0.00020684,3]
[349231853,1737051046973,-500.0,0.00020684,3]
[349231854,1737051046983,-637.2,0.00020684,3]
[349231855,1737051046993,-253.08381875,0.00020728,2]
[349231856,1737051047003,-4509.08,0.000208,2]
[349231857,1737051047012,-1525.25,0.000208,2]
[349231858,1737051047022,-1049.32,0.00020821,3]
[349231859,1737051047031,-575.92,0.00020821,3]
[349231860,1737051047041,-500.0,0.00020821,3]
[349231861,1737051047050,-500.0,0.00020821,3]
[349231862,1737051047060,-3999.41,0.00020821,3]
[349231863,1737051047069,-500.0,0.00020821,3]
[349231864,1737051047078,-500.0,0.00020821,3]
[349231865,1737051047088,-1037.46,0.00020821,3]
[349231866,1737051047097,-253.08381875,0.00020866,2]
[349231867,1737051047107,-1049.32,0.00020958,3]
[349231868,1737051047116,-575.92,0.00020958,3]
[349231869,1737051047126,-500.0,0.00020958,3]
[349231870,1737051047135,-500.0,0.00020958,3]
[349231871,1737051047144,-3999.41,0.00020958,3]
[349231872,1737051047153,-500.0,0.00020958,3]
[349231873,1737051047163,-500.0,0.00020958,3]
[349231874,1737051047173,-1037.46,0.00020958,3]
[349231875,1737051047182,-1000.0,0.00021,21]
[349231876,1737051047192,-7300.21,0.00021,2]
[349231877,1737051047201,-253.08381875,0.00021003,2]
[349231878,1737051047210,-1049.32,0.00021095,3]
[349231879,1737051047221,-575.92,0.00021095,3]
[349231880,1737051047231,-535.38,0.00021095,3]
[349231881,1737051047241,-500.0,0.00021095,3]
[349231882,1737051047250,-3999.41,0.00021095,3]
[349231883,1737051047260,-500.0,0.00021095,3]
[349231884,1737051047270,-500.0,0.00021095,3]
[349231885,1737051047281,-1037.46,0.00021095,3]
[349231886,1737051047291,-253.08381875,0.00021141,2]
[349231887,1737051047301,-151.0,0.000212,3]
[349231888,1737051047310,-1088.7,0.0002123,3]
[349231889,1737051047320,-1088.7,0.0002123,3]
[349231890,1737051047329,-500.0,0.0002123,3]
[349231891,1737051047338,-983.0,0.0002123,3]
[349231892,1737051047347,-1049.32,0.00021232,3]
[349231893,1737051047356,-575.92,0.00021232,3]
[349231894,1737051047365,-227.68,0.00021232,3]
[349231895,1737051047374,-3999.41,0.00021232,3]
[349231896,1737051047383,-604.64,0.00021232,3]
[349231897,1737051047392,-1037.46,0.00021232,3]
[349231898,1737051047402,-413.5280617,0.00021242,2]
[349231899,1737051047412,-2037.0,0.00021267,2]
[349231900,1737051047421,-253.08381875,0.00021279,2]
[349231901,1737051047431,-500.0,0.00021366,3]
[349231902,1737051047440,-500.0,0.00021366,3]
[349231903,1737051047450,-500.0,0.00021367,3]
[349231904,1737051047459,-983.0,0.00021367,3]
[349231905,1737051047468,-1049.32,0.00021369,3]
[349231906,1737051047478,-575.92,0.00021369,3]
[349231907,1737051047487,-3999.41,0.00021369,3]
[349231908,1737051047496,-1037.46,0.00021369,3]
[349231909,1737051047505,-253.08381875,0.00021417,2]
[349231910,1737051047515,-2500.0,0.00021488,2]
[349231911,1737051047524,-2286.887,0.00021491,2]
[349231912,1737051047534,-2500.0,0.00021497,2]
[349231913,1737051047543,-300.0,0.000215,9]
[349231914,1737051047553,-205.8,0.00021504,3]
[349231915,1737051047562,-983.0,0.00021504,3]
[349231916,1737051047571,-2500.0,0.00021506,2]
[349231917,1737051047581,-1049.32,0.00021506,3]
[349231918,1737051047590,-575.92,0.00021506,3]
[349231919,1737051047599,-3999.41,0.00021506,3]
[349231920,1737051047608,-1037.46,0.00021506,3]
[349231921,1737051047617,-253.08381875,0.00021555,2]
[349231922,1737051047627,-3186.0,0.000216,4]
[349231923,1737051047637,-983.0,0.00021641,3]
[349231924,1737051047646,-1049.32,0.00021643,3]
[349231925,1737051047656,-575.92,0.00021643,3]
[349231926,1737051047666,-3999.41,0.00021643,3]
[349231927,1737051047675,-1037.46,0.00021643,3]
[349231928,1737051047684,-587.0,0.00021667,2]
[349231929,1737051047694,-253.08381875,0.00021693,3]
[349231930,1737051047703,-983.0,0.00021778,3]
[349231931,1737051047713,-1049.32,0.0002178,3]
[349231932,1737051047722,-575.92,0.0002178,3]
[349231933,1737051047731,-3999.41,0.0002178,3]
[349231934,1737051047741,-1037.46,0.0002178,3]
[349231935,1737051047749,-253.08381875,0.00021831,3]
[349231936,1737051047759,-1100.0,0.0002188,2]
[349231937,1737051047768,-983.0,0.00021915,3]
[349231938,1737051047777,-1049.32,0.00021917,3]
[349231939,1737051047787,-575.92,0.00021917,3]
[349231940,1737051047796,-499.0,0.00021917,2]
[349231941,1737051047804,-3999.41,0.00021917,3]
[349231942,1737051047814,-671.16948109,0.00021917,3]
[349231943,1737051047830,-366.29051891,0.00021917,3]
[349231944,1737051047839,-253.08381875,0.00021969,3]
[349231945,1737051047849,-1000.0,0.00022,22]
[349231946,1737051047859,-983.0,0.00022052,3]
[349231947,1737051047869,-1049.32,0.00022054,3]
[349231948,1737051047878,-575.92,0.00022054,3]
[349231949,1737051047887,-3999.41,0.00022054,3]
[349231950,1737051047897,-1037.46,0.00022054,3]
[349231951,1737051047906,-253.08381875,0.00022107,3]
[349231952,1737051047916,-983.0,0.00022189,3]
[349231953,1737051047925,-1049.32,0.00022191,3]
[349231954,1737051047934,-575.92,0.00022191,3]
[349231955,1737051047944,-3999.41,0.00022191,3]
[349231956,1737051047953,-1037.46,0.00022191,3]
[349231957,1737051047963,-1525.25,0.000222,14]
[349231958,1737051047972,-253.08381875,0.00022245,3]
[349231959,1737051047981,-4509.08,0.000223,14]
[349231960,1737051047990,-983.0,0.00022326,3]
[349231961,1737051047999,-1049.38,0.00022328,3]
[349231962,1737051048009,-576.1,0.00022328,3]
[349231963,1737051048018,-3999.43,0.00022328,3]
[349231964,1737051048028,-1037.57,0.00022328,3]
[349231965,1737051048038,-253.08381875,0.00022383,3]
[349231966,1737051048048,-151.0,0.000224,6]
[349231967,1737051048057,-983.0,0.00022463,3]
[349231968,1737051048067,-5972.34420609,0.000225,2]
[349231969,1737051048079,-1327.86579391,0.000225,2]
[349231970,1737051048088,-440.12,0.000225,2]
[349231971,1737051048097,-253.08381875,0.00022521,3]
[349231972,1737051048106,-983.0,0.000226,3]
[349231973,1737051048116,-253.08381875,0.00022659,3]
[349231974,1737051048125,-983.0,0.00022737,3]
[349231975,1737051048135,-253.08381875,0.00022797,3]
[349231976,1737051048145,-983.0,0.00022874,3]
[349231977,1737051048154,-253.08381875,0.00022934,3]
[349231978,1737051048164,-1100.0,0.00022976,2]
[349231979,1737051048174,-356.96170707,0.00022999,3]
[349231980,1737051048186,-540.53557414,0.00022999,3]
[349231981,1737051048199,-191.20271879,0.00022999,3]
[349231982,1737051048208,-7438.69753278,0.00023,2]
[349231983,1737051048218,-649.58005085,0.00023,23]
[349231984,1737051048277,-413.5280617,0.00022025,2]
[349231985,1737051048287,-350.41994915,0.00023,23]
[349231986,1737051048296,-77.22950375,0.00023,10]
[349231987,1737051048312,-222.77049625,0.00023,10]
[349231988,1737051048322,-1481.70015372,0.00023,3]
[349231989,1737051048363,-5956.99737906,0.00023,3]
[349231990,1737051048373,-983.0,0.00023011,3]
[349231991,1737051048382,-253.08381875,0.00023072,3]
[349231992,1737051048392,-2000.0,0.000231,2]
[349231993,1737051048402,-983.0,0.00023148,3]
[349231994,1737051048412,-253.08381875,0.0002321,3]
[349231995,1737051048421,-855.8513725,0.00023285,3]
[349231996,1737051048433,-127.1486275,0.00023285,3]
[349231997,1737051048443,-499.0,0.00023287,4]
[349231998,1737051048452,-9800.0,0.000233,5]
[349231999,1737051048462,-3186.0,0.00023328,7]
[349232000,1737051048471,-253.08381875,0.00023348,3]
[349232001,1737051048480,-395.0,0.00023354,2]
[349232002,1737051048490,-151.0,0.00023399,7]
[349232003,1737051048500,-983.0,0.00023422,3]
[349232004,1737051048509,-275.0703576,0.00023436,2]
[349232005,1737051048518,-22553.74432538,0.00023436,2]
[349232006,1737051048528,-253.08381875,0.00023486,3]
[349232007,1737051048538,-983.0,0.00023559,3]
[349232008,1737051048547,-2000.0,0.000236,2]
[349232009,1737051048556,-15201.912774,0.00023617,59]
[349232010,1737051048657,-253.08381875,0.00023624,3]
[349232011,1737051048670,-823.0,0.00023636,2]
[349232012,1737051048681,-214.0,0.00023663,2]
[349232013,1737051048691,-214.94,0.00023663,2]
[349232014,1737051048702,-157.0,0.00023663,2]
[349232015,1737051048712,-157.0,0.00023663,2]
[349232016,1737051048723,-157.0,0.00023663,2]
[349232017,1737051048734,-157.0,0.00023663,2]
[349232018,1737051048744,-157.0,0.00023663,2]
[349232019,1737051048753,-157.0,0.00023663,2]
[349232020,1737051048763,-157.0,0.00023663,2]
[349232021,1737051048772,-157.0,0.00023663,2]
[349232022,1737051048782,-157.0,0.00023663,2]
[349232023,1737051048793,-157.0,0.00023663,2]
[349232024,1737051048802,-157.0,0.00023663,2]
[349232025,1737051048812,-157.0,0.00023663,2]
[349232026,1737051048821,-157.0,0.00023663,2]
[349232027,1737051048831,-157.0,0.00023663,2]
[349232028,1737051048841,-167.96,0.00023663,2]
[349232029,1737051048851,-153.63,0.00023663,2]
[349232030,1737051048861,-262.32707991,0.00023672,2]
[349232031,1737051048870,-500.0,0.00023673,2]
[349232032,1737051048880,-500.0,0.00023673,2]
[349232033,1737051048890,-500.0,0.00023673,2]
[349232034,1737051048899,-500.0,0.00023673,2]
[349232035,1737051048909,-500.0,0.00023673,2]
[349232036,1737051048921,-151.0,0.00023673,7]
[349232037,1737051048931,-151.0,0.00023678,7]
[349232038,1737051048940,-151.0,0.00023678,7]
[349232039,1737051048950,-196.894104,0.00023678,7]
[349232040,1737051048960,-1088.7,0.00023683,3]
[349232041,1737051048970,-1088.7,0.00023683,3]
[349232042,1737051048979,-1088.7,0.00023683,3]
[349232043,1737051048988,-1088.7,0.00023683,3]
[349232044,1737051048998,-1088.7,0.00023683,3]
[349232045,1737051049007,-1088.7,0.00023683,3]
[349232046,1737051049016,-1088.7,0.00023683,3]
[349232047,1737051049026,-1088.7,0.00023683,3]
[349232048,1737051049035,-1088.7,0.00023683,3]
[349232049,1737051049045,-1088.7,0.00023683,3]
[349232050,1737051049054,-1088.7,0.00023683,3]
[349232051,1737051049064,-1088.7,0.00023683,3]
[349232052,1737051049073,-1088.7,0.00023683,3]
[349232053,1737051049083,-1088.7,0.00023683,3]
[349232054,1737051049094,-1088.7,0.00023683,3]
[349232055,1737051049103,-1088.7,0.00023683,3]
[349232056,1737051049113,-1088.7,0.00023683,3]
[349232057,1737051049122,-1088.7,0.00023683,3]
[349232058,1737051049131,-1088.7,0.00023683,3]
[349232059,1737051049141,-1088.7,0.00023683,3]
[349232060,1737051049150,-1088.9,0.00023683,3]
[349232061,1737051049159,-153.188739,0.00023684,7]
[349232062,1737051049171,-500.0,0.00023684,9]
[349232063,1737051049180,-500.0,0.00023684,9]
[349232064,1737051049189,-500.0,0.00023685,14]
[349232065,1737051049198,-200.14,0.00023685,14]
[349232066,1737051049207,-161.28938809,0.00023685,14]
[349232067,1737051049217,-150.21,0.00023685,2]
[349232068,1737051049229,-261.17233158,0.00023685,14]
[349232069,1737051049239,-150.16247437,0.00023685,14]
[349232070,1737051049249,-152.18950846,0.00023685,14]
[349232071,1737051049259,-500.0,0.00023685,14]
[349232072,1737051049269,-500.0,0.00023685,14]
[349232073,1737051049278,-151.0,0.00023687,7]
[349232074,1737051049288,-151.0,0.00023687,7]
[349232075,1737051049297,-151.0,0.00023687,7]
[349232076,1737051049309,-151.0,0.00023687,7]
[349232077,1737051049319,-9842.34025021,0.0002369,5]
[349232078,1737051049328,-233.1330377,0.0002369,5]
[349232079,1737051049338,-248800.83283295,0.00023691,61]
[349232080,1737051049347,-487.01667722,0.00023691,3]
[349232081,1737051049356,-87936.44362435,0.00023691,61]
[349232082,1737051049368,-42913.76480617,0.00023691,61]
[349232083,1737051049408,-500.0,0.00019178,2]
[349232084,1737051049418,-413.5280617,0.00022808,2]
[349232085,1737051049428,-684.88743311,0.00023691,61]
[349232088,1737051542779,198.051829,0.00013973,2]
[349232089,1737051571248,546.92605408,0.00025,120]
[349232167,1737052232773,-300.0,0.00017999,2]
[349232169,1737052232783,-2883.18447722,0.00018,2]
[349232174,1737052232915,-999.888,0.00018,2]
[349232175,1737052232955,-13810.42619565,0.00018,2]
[349232176,1737052232965,-500.0,0.00018439,2]
[349232177,1737052232975,-501.31525899,0.00019178,2]
[349232178,1737052232984,-500.59163039,0.00019178,2]
[349232179,1737052232994,-156.97791933,0.00019178,2]
[349232180,1737052233003,-500.0,0.00019178,2]
[349232181,1737052233013,-500.6348165,0.00019178,2]
[349232182,1737052233023,-236.44601401,0.00019178,2]
[349232183,1737052233032,-506.45293214,0.00019178,2]
[349232184,1737052233043,-500.0,0.00019178,2]
[349232185,1737052233052,-500.0,0.00019178,2]
[349232186,1737052233061,-500.0,0.00019178,2]
[349232187,1737052233071,-500.0,0.00019178,2]
[349232188,1737052233082,-500.0,0.00019178,2]
[349232189,1737052233092,-500.0,0.00019178,2]
[349232190,1737052233102,-500.0,0.00019178,2]
[349232191,1737052233113,-500.0,0.00019178,2]
[349232192,1737052233123,-500.0,0.00019178,2]
[349232193,1737052233132,-500.0,0.00019178,2]
[349232194,1737052233142,-500.0,0.00019178,2]
[349232195,1737052233152,-500.0,0.00019178,2]
[349232196,1737052233161,-500.0,0.00019178,2]
[349232197,1737052233172,-500.0,0.00019178,2]
[349232198,1737052233182,-276.53509387,0.00019178,2]
[349232199,1737052233193,-500.0,0.00019178,2]
[349232200,1737052233202,-500.0,0.00019178,2]
[349232201,1737052233212,-507.71617731,0.00019178,2]
[349232202,1737052233222,-500.0,0.00019178,2]
[349232203,1737052233233,-500.0,0.00019178,2]
[349232204,1737052233244,-500.0,0.00019178,2]
[349232205,1737052233254,-500.0,0.00019178,2]
[349232206,1737052233264,-500.0,0.00019178,2]